Cogmind - Beta 17 @@@ ROGUE MODE // 2026.07.27 @ 17:10:20 Player: Akl Result: Destroyed by L-31 Rogue with Katana Performance ------------- Evolutions (2) 1000 Regions Visited (5) 1000 Robots Destroyed (47) 235 Value Destroyed (1587) 1587 Prototype IDs (5) 100 Alien Tech Used (0) 0 Bonus (0) 0 TOTAL SCORE: 3922 Bonus ------- None Cogmind --------- Core Integrity 0/550 Matter 290/300 Energy 160/160 System Corruption 1% Temperature Cool (0) Movement Walking (90) Location -8/Storage Parts ------- > --- POWER (1) -------- Light Nuclear Core > --- PROPULSION (3) --- Armored Treads VSS Leg VSS Leg > --- UTILITY (5) ------ Medium Storage Unit Advanced Visual Processing Unit Improved Targeting Computer Improved Light Armor Plating Hacking Suite > --- WEAPON (2) ------- Minigun Scythe > --- INVENTORY (10) --- Improved Ion Engine Medium Storage Unit Targeting Computer ECM Suite Light Armor Plating High-powered Tractor Beam Minigun Gauss Rifle Mining Laser Peak State ------------ > --- POWER ------------ Light Nuclear Core > --- PROPULSION ------- Armored Treads VSS Leg VSS Leg > --- UTILITY ---------- Medium Storage Unit Advanced Visual Processing Unit Improved Targeting Computer Improved Light Armor Plating Hacking Suite > --- WEAPON ----------- Minigun Scythe > --- INVENTORY -------- Improved Ion Engine Carbon-fiber Leg Titanium Leg Medium Storage Unit Targeting Computer Light Armor Plating High-powered Tractor Beam Minigun Gauss Rifle Mining Laser [Rating: 32] Favorites ----------- Power Light Ion Engine Engine Light Ion Engine Power Core Nuclear Core Propulsion VSS Leg Treads Light Treads Leg VSS Leg Wheel Wheel Hover Unit Improved Hover Unit Flight Unit Flight Unit Utility Medium Storage Unit Device Heat Sink Storage Medium Storage Unit Processor Visual Processing Unit Hackware Hacking Suite Protection Improved Light Armor Plating Weapon Particle Gun Energy Gun Particle Gun Ballistic Gun Assault Rifle Slashing Weapon Scythe Build | -11 -10 -10 -9 -8 -8 ------- Run | Yrd Mat Min Mat Mat Sto Slots Evolved 4 | . . . 2 2 . Power . | . . . . . . Propulsion 1 | . . . . 1 . Utility 3 | . . . 2 1 . Weapon . | . . . . . . Parts Attached 60 | 6 1 3 16 28 6 Power 8 | 1 . . 3 3 1 Engine 6 | 1 . . 3 2 . Core 2 | . . . . 1 1 Reactor . | . . . . . . Propulsion 26 | 2 . 2 5 14 3 Treads 6 | 2 . . . 4 . Leg 10 | . . . 3 5 2 Wheel 2 | . . 2 . . . Hover 2 | . . . 2 . . Flight 6 | . . . . 5 1 Utility 13 | 1 1 . 4 6 1 Device 1 | . . . 1 . . Storage 4 | 1 1 . 1 1 . Processor 4 | . . . 2 1 1 Hackware 1 | . . . . 1 . Protection 3 | . . . . 3 . Artifact . | . . . . . . Weapon 13 | 2 . 1 4 5 1 Energy Gun 3 | . . . 3 . . Energy Cannon . | . . . . . . Ballistic Gun 8 | 2 . 1 1 4 . Ballistic Cannon . | . . . . . . Launcher . | . . . . . . Special Weapon . | . . . . . . Impact Weapon . | . . . . . . Slashing Weapon 2 | . . . . 1 1 Piercing Weapon . | . . . . . . Special Melee Weapon . | . . . . . . Unidentified Prototypes 1 | . . . . . 1 Parts Lost 25 | . . 7 3 14 1 Power 5 | . . 1 1 2 1 Propulsion 11 | . . 4 1 6 . Utility 3 | . . . . 3 . Weapon 6 | . . 2 1 3 . Highest Loss Streak 7 | . . 7 3 6 1 To Critical Strikes . | . . . . . . Average Backups 8 | 2 5 7 7 9 9 Power 1 | . 1 1 . 1 1 Propulsion 2 | 1 4 3 3 2 1 Utility 1 | . . . . 1 3 Weapon 3 | . . 3 3 2 3 Tool/Special . | . . . . . . Unused Backups 13 | . . . . 3 10 Power 1 | . . . . 1 . Propulsion 2 | . . . . . 2 Utility 4 | . . . . 1 3 Weapon 6 | . . . . 1 5 Tool/Special . | . . . . . . Average Slot Usage (%) 86 | . 86 67 81 86 98 Engine 7 | . 14 9 8 5 6 Core 1 | . . . . 2 1 Treads 7 | . 28 19 . 6 9 Leg 11 | . . . 8 13 17 Hover 3 | . . . 12 . . Flight 1 | . . . . 2 . Device 2 | . . . 5 3 . Storage 10 | . 15 14 11 10 9 Processor 16 | . . . 14 21 18 Hackware 2 | . . . . 1 9 Protection 2 | . . . . 2 9 Energy Gun 6 | . . . 18 4 . Ballistic Gun 10 | . 28 20 3 10 11 Slashing Weapon 2 | . . . . 2 6 Peak Build Rating 32 | 6 7 6 17 26 32 Average Rating 17 | 4 6 4 12 19 28 On Entrance 9 | . 6 6 2 17 26 Avg Prop Armor Cover (%) 10 | . . . 9 10 11 Naked Turns . | . . . . . . Heaviest Build 24 | 12 17 17 24 24 23 Greatest Support 60 | 40 40 40 20 60 29 Greatest Overweight (x) 6 | . . 3 6 4 3 Average Overweight (x) . | . . . . . . Largest Inventory Capacity 10 | 8 10 10 10 10 10 Average Capacity 9 | 6 8 10 10 10 10 Most Carried 10 | 5 8 8 9 10 10 Average Carried 8 | 3 6 7 7 9 9 Final Capacity 10 | 8 10 10 10 10 10 Final Carried 9 | 5 8 6 8 9 9 Class Distribution -------------------- 82% | Mutant 17% | Scavenger-Mutant Dominant Class ---------------- Mutant | -10/Materials Mutant | -10/Mines Mutant | -9/Materials Mutant | -8/Materials Mutant | -8/Storage Resources | -11 -10 -10 -9 -8 -8 ----------- Run | Yrd Mat Min Mat Mat Sto Matter Collected 957 | 260 . 11 230 301 155 Remotely . | . . . . . . Salvage Created 1776 | . . 23 524 594 635 Parts 91 | . . 3 24 32 32 Haulers Intercepted . | . . . . . . Recyclers Shooed 1 | . . . 1 . . Parts Field Recycled . | . . . . . . Retrieved Matter . | . . . . . . Parts Self-Destructed . | . . . . . . Prevented . | . . . . . . Parts Restored . | . . . . . . Kills | -11 -10 -10 -9 -8 -8 ------- Run | Yrd Mat Min Mat Mat Sto Combat Hostiles Destroyed 44 | . . 2 15 15 12 Melee 18 | . . . . 7 11 Guns 25 | . . 2 14 8 1 Classes Destroyed 10 | . . 1 3 5 1 Worker 1 | . . . . 1 . Recycler 1 | . . . 1 . . Watcher 1 | . . . . 1 . Swarmer 13 | . . 2 7 4 . Grunt 19 | . . . 6 5 8 Brawler 1 | . . . . . 1 Duelist 1 | . . . . 1 . Sentry 6 | . . . 2 2 2 Specialist 2 | . . . . 2 . Hunter 2 | . . . . 1 1 Best Kill Streak 7 | . . 2 5 5 7 Combat Bots Only 7 | . . 2 4 5 7 Max Kills in Single Turn 2 | . . 1 2 1 1 Gunslinging . | . . . . . . Exploded . | . . . . . . Melee 1 | . . . . 1 1 Uniques/NPCs Destroyed . | . . . . . . Combat | -11 -10 -10 -9 -8 -8 -------- Run | Yrd Mat Min Mat Mat Sto Hostile Shots Fired 353 | . 22 51 77 147 56 Missed 82 | . 5 15 21 25 16 Hits 271 | . 17 36 56 122 40 Melee 5 | . . . . 2 3 Projectile 266 | . 17 36 56 120 37 AOE 14 | . . 14 . . . Critical Strikes 9 | . . 1 1 5 2 Damage Taken 3774 | . 136 776 592 1583 687 Core 868 | . 7 184 119 464 94 Absorbed by Shields . | . . . . . . Core Remaining (%) 64 | 100 . 23 70 . . Volleys Fired 91 | . . 3 40 44 4 Largest 2 | . . 2 2 2 2 Hottest 130 | . . 40 130 130 45 Shots Fired 163 | . . 6 80 68 9 Gun 163 | . . 6 80 68 9 Cannon . | . . . . . . Launcher . | . . . . . . Special . | . . . . . . Kinetic 68 | . . 6 10 43 9 Thermal 95 | . . . 70 25 . Explosive . | . . . . . . Electromagnetic . | . . . . . . Robot Hit Streak 14 | . . 2 9 14 10 Robot Miss Streak 6 | . . 2 6 3 . Penetration Max . | . . . . . . Secondary Targets 1 | . . . . 1 . Max Gunslinging Chain 1 | . . . . 1 . Shots Hit Robots 158 | . . 3 49 67 39 Core Hits 68 | . . 3 21 29 15 Critical Kills . | . . . . . . Critical Parts Destroyed . | . . . . . . Critical Strikes 13 | . . . 4 4 5 Burn 6 | . . . 4 2 . Sever 7 | . . . . 2 5 Melee Attacks 61 | . . . . 21 40 Impact . | . . . . . . Slashing 61 | . . . . 21 40 Piercing . | . . . . . . Sneak Attacks . | . . . . . . Combat Hostiles . | . . . . . . Follow-up Attacks . | . . . . . . Damage Inflicted 3000 | . . 60 746 1172 1022 Guns 1607 | . . 58 746 686 117 Cannons . | . . . . . . Explosions . | . . . . . . Melee 1386 | . . . . 481 905 Ramming 7 | . . 2 . 5 . Kinetic 611 | . . 58 62 374 117 Thermal 996 | . . . 684 312 . Explosive . | . . . . . . Electromagnetic . | . . . . . . Impact . | . . . . . . Slashing 1386 | . . . . 481 905 Piercing . | . . . . . . Highest Corruption 1 | . . . 1 1 1 Average Corruption 1 | . . . 1 1 1 Corruption Purged . | . . . . . . Corruption Blocked . | . . . . . . Effects 13 | . . . 3 4 6 Message Errors 3 | . . . 1 . 2 Matter Fused 4 | . . . . 2 2 Heat Flow Errors 1 | . . . . 1 . Energy Discharges 2 | . . . 2 . . Data Loss (minor) 1 | . . . . . 1 Data Loss (major) 1 | . . . . 1 . Misfires 1 | . . . . . 1 Overload Shots . | . . . . . . Overflow Damage 47 | . . . . 33 14 Projectiles . | . . . . . . Explosions . | . . . . . . Melee 47 | . . . . 33 14 Knockbacks . | . . . . . . Impact . | . . . . . . Kinetic . | . . . . . . Secondary . | . . . . . . Self-Inflicted Damage 1 | . . 1 . . . Shots . | . . . . . . Rammed 1 | . . 1 . . . Targets Rammed 3 | . . 1 . 2 . Kicked 2 | . . . . 2 . Crushed . | . . . . . . Highest Temperature 394 | . . . 394 207 5 Average Temperature 83 | . . . 84 82 4 Received Heat Transfer 951 | . . 42 144 468 297 Effects 4 | . . . 1 3 . Interference 3 | . . . . 3 . Matter Decay 1 | . . . 1 . . Siege Activations . | . . . . . . Martial Activations . | . . . . . . Shielding Activations . | . . . . . . Robots Disrupted . | . . . . . . Combat Hostiles . | . . . . . . Robots Corrupted . | . . . . . . Combat Hostiles . | . . . . . . Parts Fried . | . . . . . . Impact Corruptions . | . . . . . . Robots Melted 1 | . . . 1 . . Combat Hostiles 1 | . . . 1 . . Parts Melted 6 | . . . 2 4 . Heat Transferred 2923 | . . . 1998 925 . Parts Sabotaged . | . . . . . . Parts Stolen . | . . . . . . Parts Stripped . | . . . . . . Power Chain Reactions . | . . . . . . Alert | -11 -10 -10 -9 -8 -8 ------- Run | Yrd Mat Min Mat Mat Sto Maximum Alert Level . | . . . . . . Low Security (%) 100 | 100 100 100 100 100 100 Level 1 . | . . . . . . Level 2 . | . . . . . . Level 3 . | . . . . . . Level 4 . | . . . . . . Level 5 . | . . . . . . High Security . | . . . . . . Max Security . | . . . . . . Peak Influence 176 | . . 50 130 75 176 Initial 44 | . . . 15 44 1 Average 38 | . . 8 64 29 43 Influence Increases 1256 | . . 100 399 417 340 Destroy 0b10 Robot/C 880 | . . 40 300 300 240 Destroy 0b10 Robot/NC 15 | . . . 5 10 . Destroy Leader 202 | . . . 60 72 70 Successful Hack 34 | . . . 14 20 . Disable Machine 45 | . . . 15 . 30 Destroy Structure 5 | . . . 5 . . Lose Combat Pursuer 75 | . . 60 . 15 . Influence Decreases 1088 | . . 60 334 516 178 Entered New Map 91 | . . . 25 61 5 Time Decay 767 | . . 20 279 325 143 Lost Part 200 | . . 40 30 130 . Purge Threat 30 | . . . . . 30 Squads Dispatched 12 | . 1 . 4 4 3 Investigation 4 | . . . 2 2 . Extermination . | . . . . . . Reinforcement 6 | . 1 . 2 2 1 Assault . | . . . . . . Garrison 2 | . . . . . 2 Intercept . | . . . . . . Searches Triggered . | . . . . . . Construction Impeded . | . . . . . . Haulers Reinforced . | . . . . . . Active Scanning Responses . | . . . . . . Cargo Convoy Interrupts . | . . . . . . Stealth | -11 -10 -10 -9 -8 -8 --------- Run | Yrd Mat Min Mat Mat Sto Distress Signals 4 | . 1 . 1 . 2 Communications Jammed . | . . . . . . Distress Signals . | . . . . . . Times Spotted 72 | . 5 13 20 18 16 Peak Tracking Total 6 | . 4 6 4 6 5 Tactical Retreats 3 | . . 2 . 1 . Traps | -11 -10 -10 -9 -8 -8 ------- Run | Yrd Mat Min Mat Mat Sto Traps Triggered 1 | . . . 1 . . Indirectly . | . . . . . . Trap Hack Attempts . | . . . . . . Triggered . | . . . . . . Disarmed . | . . . . . . Reprogrammed . | . . . . . . Reused . | . . . . . . Traps Extracted . | . . . . . . Installed . | . . . . . . Triggered . | . . . . . . Machines | -11 -10 -10 -9 -8 -8 ---------- Run | Yrd Mat Min Mat Mat Sto Machines Disabled 3 | . . . 1 . 2 Max in Single Turn 1 | . . . 1 . 1 Machines Repaired . | . . . . . . Machines Dismantled . | . . . . . . Machines Sabotaged . | . . . . . . Overloaded Fab Kills . | . . . . . . Hacking | -11 -10 -10 -9 -8 -8 --------- Run | Yrd Mat Min Mat Mat Sto Machines Accessed 11 | . . . 3 5 3 Terminals 9 | . . . 1 5 3 Fabricators . | . . . . . . Repair Stations . | . . . . . . Recycling Units 1 | . . . 1 . . Scanalyzers 1 | . . . 1 . . Garrison Access . | . . . . . . Total Hacks 30 | . . . 8 16 6 Successful 16 | . . . 6 7 3 Failed 14 | . . . 2 9 3 Catastrophic 3 | . . . . 3 . Database Lockouts . | . . . . . . Manual 16 | . . . 1 13 2 Terminals 25 | . . . 3 16 6 Fabricators . | . . . . . . Repair Stations . | . . . . . . Recycling Units 1 | . . . 1 . . Scanalyzers 4 | . . . 4 . . Garrison Access . | . . . . . . Terminal Hacks 7 | . . . 1 4 2 Prototype ID Bank 2 | . . . . 2 . Open Door 1 | . . . . . 1 Unreport Threat 1 | . . . . . 1 Reinforcement Status 1 | . . . . 1 . Recall Reinforcements 1 | . . . . 1 . Zone Layout 1 | . . . 1 . . Fabricator Hacks . | . . . . . . Repair Station Hacks . | . . . . . . Recycling Unit Hacks . | . . . . . . Scanalyzer 4 | . . . 4 . . Insert Component 2 | . . . 2 . . Analyze 2 | . . . 2 . . Garrison Access Hacks . | . . . . . . Unauthorized Hacks 5 | . . . 1 3 1 Terminals 4 | . . . . 3 1 Botnet 4 | . . . . 3 1 Fabricators . | . . . . . . Repair Stations . | . . . . . . Recycling Units 1 | . . . 1 . . Reject 1 | . . . 1 . . Scanalyzers . | . . . . . . Garrison Access . | . . . . . . Data Cores Recovered . | . . . . . . Used . | . . . . . . Hacking Detections 10 | . . . 3 5 2 Full Trace Events 5 | . . . 2 3 . Feedback Events 2 | . . . 1 1 . Corruption 2 | . . . 1 1 . Feedback Blocked . | . . . . . . Robot Schematics Acquired . | . . . . . . Robots Built . | . . . . . . Authchips . | . . . . . . Time . | . . . . . . Total Robot Build Rating . | . . . . . . Part Schematics Acquired 1 | . . . 1 . . Parts Built . | . . . . . . Authchips . | . . . . . . Time . | . . . . . . Total Part Build Rating . | . . . . . . Part Studies Acquired . | . . . . . . Parts Repaired . | . . . . . . Time . | . . . . . . Parts Recycled . | . . . . . . Recycled Matter . | . . . . . . Retrieved Matter . | . . . . . . Retrieved Components . | . . . . . . Parts Scanalyzed 2 | . . . 2 . . Part Schematics Acquired 1 | . . . 1 . . Parts Damaged . | . . . . . . Bothacking | -11 -10 -10 -9 -8 -8 ------------ Run | Yrd Mat Min Mat Mat Sto Used RIF Installer . | . . . . . . Robots Hacked . | . . . . . . Non-combat . | . . . . . . Combat . | . . . . . . Robot Hacks Applied . | . . . . . . Relay Couplers Released . | . . . . . . Fabnet Peak Effective % . | . . . . . . Robots Rewired . | . . . . . . Allies Hacked . | . . . . . . Hacks Repelled . | . . . . . . Allies | -11 -10 -10 -9 -8 -8 -------- Run | Yrd Mat Min Mat Mat Sto Total Allies . | . . . . . . Largest Group . | . . . . . . Highest-Rated Group . | . . . . . . Highest-Rated Ally . | . . . . . . Total Orders . | . . . . . . Ally Attacks . | . . . . . . Total Damage . | . . . . . . Kills . | . . . . . . Allies Corrupted . | . . . . . . Allies Melted . | . . . . . . Intel | -11 -10 -10 -9 -8 -8 ------- Run | Yrd Mat Min Mat Mat Sto Active Infowar (turns) 1849 | . . . 514 874 461 Optics 1849 | . . . 514 874 461 Robot Analysis Total . | . . . . . . Derelict Logs Recovered 1 | . . 1 . . . Drone Launches . | . . . . . . Drone Recoveries . | . . . . . . Exploration | -11 -10 -10 -9 -8 -8 ------------- Run | Yrd Mat Min Mat Mat Sto Turns Passed 2310 | 71 100 155 649 874 461 Spaces Moved 1256 | 47 47 104 315 462 281 Core 29 | 18 . 9 1 1 . Treads 189 | 29 47 59 . 54 . Legs 786 | . . . 118 388 280 Wheels 36 | . . 36 . . . Hover 196 | . . . 196 . . Flight 20 | . . . . 19 1 Fastest Speed 50 | 50 160 80 116 110 90 Average Speed 127 | 117 160 135 135 134 101 Slowest Speed 350 | 160 160 200 350 280 265 Overloaded Moves . | . . . . . . Propulsion Burnouts . | . . . . . . Robots Hopped . | . . . . . . Potential Cave-ins . | . . . . . . Cave-ins Triggered . | . . . . . . Exploration Rate (%) 26 | 3 13 39 34 27 42 Regions Visited 5 Branch Regions 2 Pre-discovered Areas . | . . . . . . Known Exits Taken . | . . . . . . Unknown Exits Taken 5 | 1 1 1 1 1 . Scrap Searched . | . . . . . . Spaces Dug . | . . . . . . Terrain Destroyed . | . . . . . . Melee . | . . . . . . Projectile . | . . . . . . AOE . | . . . . . . Terrain Rammed . | . . . . . . Walls Destroyed . | . . . . . . Machines Disabled . | . . . . . . Actions | -11 -10 -10 -9 -8 -8 --------- Run | Yrd Mat Min Mat Mat Sto Total 1709 | 63 72 111 456 614 393 Wait 164 | . 20 1 67 35 41 Move 1251 | 46 46 103 314 461 281 Hop . | . . . . . . Pick Up 42 | 11 3 . 12 7 9 Fast Attach 30 | . 1 1 5 20 3 Attach 23 | 6 . 2 8 7 . Detach 5 | . 1 . . 4 . Swap 9 | . . . 3 2 4 Drop 30 | . 1 . 7 11 11 Fire 91 | . . 3 40 44 4 Melee 61 | . . . . 21 40 Ram 1 | . . 1 . . . Kick 2 | . . . . 2 . Crush . | . . . . . . Escape Stasis . | . . . . . . Rewire . | . . . . . . Trap . | . . . . . . Miscellaneous . | . . . . . . Route ------- -11/Scrapyard -10/Materials -10/Mines -9/Materials -8/Materials -8/Storage History --------- Turn | Location | Event 11 | -11/Scrapyard | Discovered new exit (range 15) 72 | -11/Scrapyard | Entered Materials 91 | -10/Materials | Discovered new exit (range 13) 172 | -10/Materials | Entered Mines 252 | -10/Mines | Assembled infested the area 257 | -10/Mines | Assisted by a Guerilla fighting off Assembled 289 | -10/Mines | Learned Materials garrison access intel 315 | -10/Mines | Core integrity fell below 50% 316 | -10/Mines | Discovered new exit (range 5) 318 | -10/Mines | Build established: Mutant 327 | -10/Mines | Entered Materials 327 | -9/Materials | Evolved 2 slots: Utility x2 339 | -9/Materials | Lost 7 parts (1p4n2w) 792 | -9/Materials | Discovered new exit (range 16) 851 | -9/Materials | Lost 3 parts (1p1n1w) 976 | -9/Materials | Entered another Materials area 976 | -8/Materials | Evolved 2 slots: Propulsion x1, Utility x1 977 | -8/Materials | Loaded intel: 1 garrison access location 1313 | -8/Materials | Lost 4 parts (1p1n1u1w) 1543 | -8/Materials | Core integrity fell below 50% 1576 | -8/Materials | Core integrity fell below 20% 1599 | -8/Materials | Lost 6 parts (1p3n1u1w) 1695 | -8/Materials | Discovered new exit (range 4) 1850 | -8/Materials | Entered Storage 2172 | -8/Storage | Garrison activated, responded to threat 2240 | -8/Storage | Destroyed 7 combat bots 2311 | -8/Storage | Destroyed by L-31 Rogue with Katana Last Messages --------------- 02219_ G-47 Trooper destroyed. 02222_ K-01 Serf collects debris. 02224_ Acquired Lgt. Nuclear Core. 02225_ K-01 Serf collects debris. 02226_ Acquired 10 matter. 02229_ K-01 Serf collects debris. 02229_ W-25 Informer sends out distress signal. 02232_ K-01 Serf collects debris. 02243_ Y-45 Defender destroyed. 02251_ System corrupted: Matter fused (-7). 02268_ Acquired 7 matter. 02272_ Connecting with Door Terminal... 02282_ Discarded Visual Processing Unit. 02285_ Dropped Titanium Leg. 02285_ Dropped Carbon-fiber Leg. 02286_ Acquired ECM Suite. 02302_ B-36 Bruiser destroyed. 02304_ R-06 Scavenger collects Aluminum Leg. 02305_ L-31 Rogue Imp. Aluminum Leg severed. 02310_ L-31 Rogue Imp. Ion Engine severed. Map ----- +----------------------------------------------------+ | ?# ?????????# """"" #???????????? | | ?##########??????????# """"" #???????????? | | ?????????????????????# "% / #???????????? | | ?????????????????????# """"" #???????????? | | ?????????????????????# =% #???????????? | | ?????????????##########+##+######?????????? | | ???????????# [* #?????????? | | ???????????+ #?????????? | | ???????????# #?????????? | | ???????????### #####+###### #?????????? | | ?????????????# ???? ????# #?????????? | | ?????????????# ???? ????# #?????????? | | ?????????????#????? """????# #?????????? | | ??????????????????# """????# #?????????? | | ??????????????????# ?"""????# #?????????? | | ??????????????????# ?"""????# ######????? | | ??????????????????# ?????????# ##"""#????? | | ??????????????????#??????????# ##"Y"#?G"#? | | ?????????????????????????????# ##" "#" "# | | ?????????????????????????????# | | ???????????????####??????????# | | ???????????????#!!#??????????# " """"" | | ???????????????#!!#??????????# T """"" | | ???????????????#= ############ " " "" | | ??????????????##"=## | | ??????????????#T @# | | ??????????????## ==l% ###############T | | ???????????????#####* # #????? | | ??????????????????## m + """ #????? | | ???????????"####### r# """"!" #????? | | ???????????" # ="" " #????? | | ???????????" # ]""= =#????? | | ???????????"#T# # "["""" #????? | | ????????????###! r# """ [ #????? | | ????????????###[ [% + %[ #????? | | ##########??#=%*! %[=%###########????? | | # #??#=############+##?????????????? | | # #### # #????#%=#?????????????? | | # + + #????"!!#?????????????? | | # # # #????"! #?????????????? | | ?###+##### # " #????#T##?????????????? | | ???# #?T #????###??????????????? | | ???############?" #?????????????????????? | | ????????????????? #?????????????????????? | | ?????????????????####?????????????????????? | | ??????????????????????????????????????????? | | | | | | | | | +----------------------------------------------------+ Best States ------------- Heat Dissipation 41 Energy Generation 14 Energy Capacity 265 Matter Stores 350 Matter Capacity 350 Sight Range 20 Terrain Scan Density 10 Armor Coverage 150 Evasion (%) 57 Targeting Accuracy 11 Recoil Reduction 3 Offensive Hacking 10 Item Schematics ----------------- Imp. Aluminum Leg | -9/Materials | Scanalyzed Robot Schematics ------------------ None Fabricated ------------ Nothing Repaired ---------- Nothing Studied --------- None Alien Tech Used ----------------- None Achievements -------------- None Challenges ------------ None Game ------ Seed LightningDeflectorAxe Manual? 0 Play Time 00:25:09 Cumulative 52.2 hours Start 2026.07.27 @ 16:47:18 End 2026.07.27 @ 17:10:20 Sessions 1 Manual Loads 0 Difficulty Rogue Special Mode None Game No. 90 Rogue 90 Adventurer 0 Explorer 0 Win Type - Total 0 Types 0/0/0/0/0/0/0/0/0/0 Lore% 28 Gallery% 33 Achievement% 27 Wizard Run 0 Options --------- Layout 1 ASCII 0 Keyboard 0 Movement Numpad Keybinds 0 Fullscreen 2 Font 24/Smallcaps Map View 50x35 Zoom Use 0% Tactical HUD 1 Map Filters NONE Filters NONE Steam 1 RUN: 21332152-5baa-459c-9c19-d0161da73ee0